bitfinex/quotes_ETHUSD_20241119
["timestamp","ask_amount","ask_price","bid_price","bid_amount"]
[1732008070823,3.2109,3114.4,3113.8,3.21144]
[1732008070963,3.2109,3114.4,3113.7,3.21158]
[1732008070964,3.21116,3114.2,3113.7,3.21158]
[1732008071163,3.53215,3114.3,3113.8,3.21148]
[1732008071376,3.53211,3114.3,3113.8,3.21148]
[1732008071715,1.41126559,3114.7,3114.2,0.8128]
[1732008071716,3.86380559,3114.7,3114.2,0.8128]
[1732008071865,3.2108,3114.5,3114.2,0.8128]
[1732008072206,3.91826056,3114.5,3114.2,0.8128]
[1732008072701,0.70746056,3114.5,3114.2,0.8128]
[1732008072904,3.21126,3114.1,3113.2,0.8233]
[1732008073110,3.21138,3114.0,3113.4,3.21184]
[1732008073266,0.321126,3114.1,3113.2,4.03537]
[1732008073463,0.321126,3114.1,3113.2,0.8233]
[1732008073706,3.2112,3114.1,3113.5,3.21173]
[1732008073911,3.21099,3114.3,3113.6,0.7597]
[1732008074068,0.398309,3114.2,3113.7,3.21157]
[1732008074268,3.21135,3114.0,3113.6,0.7597]
[1732008074812,3.98302,3114.4,3113.6,0.7597]
[1732008074813,3.2116,3113.8,3113.6,0.7597]
[1732008075477,3.21099,3114.3,3113.6,0.7597]
[1732008075683,3.21153,3113.8,3113.6,0.7597]
[1732008076711,3.21131,3114.0,3113.6,0.7597]
[1732008077016,0.7721,3114.4,3113.6,0.7597]
[1732008077017,3.21127,3114.1,3113.6,0.7597]
[1732008077314,6.42254,3114.1,3113.6,0.7597]
[1732008077618,3.21131,3114.0,3113.6,0.7597]
[1732008077911,0.7721,3114.4,3113.6,0.7597]
[1732008077912,3.2115,3113.9,3113.6,0.7597]
[1732008078217,3.2115,3113.9,3112.4,2.91061554]
[1732008078218,3.21158,3113.8,3113.4,0.7601]
[1732008079569,3.21169,3113.7,3113.4,0.7601]
[1732008080220,3.21173,3113.6,3113.4,0.7601]
[1732008080791,3.21147,3113.9,3113.4,0.7601]
[1732008081121,3.21156,3113.8,3113.4,0.7601]
[1732008081478,3.21139,3114.0,3113.4,0.7601]
[1732008081680,3.21149,3113.9,3113.4,0.7601]
[1732008081874,3.21149,3113.9,3113.4,3.97201]
[1732008082820,0.321139,3114.0,3113.4,3.97201]
[1732008082974,3.21141,3113.9,3113.4,3.97201]
[1732008084102,3.21162,3113.7,3113.4,0.7601]
[1732008084307,3.21181,3113.5,3113.4,0.7601]
[1732008084539,3.21181,3113.5,3112.8,0.1437865]
[1732008084540,3.21243,3112.9,3112.8,0.1437865]
[1732008087077,3.98993,3112.9,3112.8,0.1437865]
[1732008087774,6.98993,3112.9,3112.8,0.1437865]
[1732008087979,8.37574701,3112.9,3112.8,0.1437865]
[1732008088176,8.92574701,3112.9,3112.8,0.1437865]
[1732008088484,9.69922715,3112.9,3112.8,6.5e-06]
[1732008090318,9.71839382,3112.9,3112.8,6.5e-06]
[1732008091320,13.71839382,3112.9,3112.8,6.5e-06]
[1732008093447,23.50130682,3112.9,3112.8,6.5e-06]
[1732008093582,20.48899982,3112.9,3112.8,6.5e-06]
[1732008094389,20.82375551,3112.9,3112.8,6.5e-06]
[1732008096416,21.26816473,3112.9,3112.8,6.5e-06]
[1732008096987,3.5344,3110.9,3110.8,0.7988]
[1732008097228,3.21439,3111.1,3109.6,0.1437865]
[1732008097229,0.3199,3109.7,3109.6,0.1437865]
[1732008097529,0.3199,3109.7,3109.6,0.9661865]
[1732008098298,0.3199,3109.7,3109.6,4.56273315]
[1732008098495,0.3199,3109.7,3109.6,1.34689315]
[1732008099037,0.3199,3109.7,3109.6,0.9286865]
[1732008099359,3.53564,3109.7,3109.6,0.1437865]
[1732008099698,4.03024692,3109.7,3109.6,0.1437865]
[1732008100004,7.03024692,3109.7,3109.6,0.1437865]
[1732008100426,6.53564,3109.7,3109.6,0.1437865]
[1732008100939,3.53564,3109.7,3109.6,0.1437865]
[1732008101799,0.3199,3109.7,3109.6,0.1437865]
[1732008101998,0.3199,3109.7,3109.6,0.9078865]
[1732008102199,0.3199,3109.7,3109.6,0.1437865]
[1732008102200,3.899186,3109.7,3109.6,0.1437865]
[1732008102481,3.54564,3109.7,3109.6,0.1437865]
[1732008102649,4.04024692,3109.7,3109.6,0.1437865]
[1732008102799,4.03024692,3109.7,3109.6,0.1437865]
[1732008102996,3.53564,3109.7,3109.6,0.1437865]
[1732008103196,0.3199,3109.7,3109.6,0.9255865]
[1732008104266,3.53564,3109.7,3109.6,0.9255865]
[1732008104551,3.53564,3109.7,3109.6,0.1437865]
[1732008104698,4.210776,3109.7,3109.6,0.1437865]
[1732008106038,4.67368325,3109.7,3109.6,0.1437865]
[1732008109168,7.67368325,3109.7,3109.6,0.1437865]
[1732008109319,7.67368325,3109.7,3109.6,6.5e-06]
[1732008109320,8.614076,3109.7,3109.6,6.5e-06]
[1732008109510,9.07698325,3109.7,3109.6,6.5e-06]
[1732008112748,13.07698325,3109.7,3109.6,6.5e-06]
[1732008113916,0.3199,3107.8,3107.4,0.7678]
[1732008114227,0.3199,3107.8,3107.5,3.21795]
[1732008114431,0.3199,3107.8,3107.6,0.7678]
[1732008114925,0.3199,3107.9,3107.6,0.7678]
[1732008115127,0.3199,3107.9,3107.6,0.7178]
[1732008115344,0.01,3108.8,3107.6,0.7178]
[1732008115345,0.3199,3107.7,3107.6,0.7178]
[1732008115763,3.53771,3107.7,3107.6,0.7178]
[1732008117616,0.3199,3107.7,3107.6,0.7178]
[1732008117861,3.53771,3107.7,3107.6,0.7178]
[1732008119157,0.3199,3107.7,3107.6,0.7178]
[1732008119363,3.53771,3107.7,3107.6,0.7178]
[1732008120563,0.3199,3107.7,3107.6,0.7178]
[1732008121119,3.53771,3107.7,3107.6,0.7178]
[1732008121862,0.3199,3107.7,3107.6,0.7178]
[1732008122765,0.3199,3107.7,3107.6,1.983197]
[1732008122766,0.13995625,3107.7,3107.6,1.983197]
[1732008122925,0.13995625,3107.7,3107.6,4.48571]
[1732008123325,0.13995625,3107.7,3107.6,1.2678]
[1732008123553,0.13995625,3107.7,3107.6,4.48571]
[1732008123823,0.13995625,3107.7,3107.6,4.706083]
[1732008125152,0.13995625,3107.7,3107.6,1.488173]
[1732008125333,0.13995625,3107.7,3107.6,0.7178]
[1732008125847,0.13995625,3107.7,3107.6,3.93571]
[1732008126163,0.13995625,3107.7,3107.6,0.7178]
[1732008126663,3.35776625,3107.7,3107.6,0.7178]
[1732008126871,0.13995625,3107.7,3107.6,0.7178]
[1732008127024,3.21812,3107.4,3107.3,2.48073064]
[1732008127850,3.21799,3107.6,3107.3,2.48073064]
[1732008128167,3.2179,3107.7,3107.3,2.48073064]
[1732008128338,3.21812,3107.4,3107.3,2.48073064]
[1732008128954,3.218,3107.6,3107.3,2.48073064]
[1732008129172,3.21775,3107.8,3107.3,2.48073064]
[1732008129497,0.7522,3108.7,3107.7,0.7802]
[1732008129636,3.21714,3108.4,3107.8,3.21762]
[1732008129840,3.96697,3109.0,3107.7,0.7802]
[1732008129841,3.21751,3108.0,3107.7,0.7802]
[1732008130379,3.21734,3108.2,3107.7,0.7802]
[1732008130578,3.2175,3108.0,3107.7,0.7802]
[1732008130789,3.21712,3108.4,3107.7,0.7802]
[1732008130969,3.21737,3108.2,3107.7,0.7802]
[1732008131141,3.21752,3108.0,3107.7,1.180005]
[1732008131339,3.21752,3108.0,3107.7,0.7802]
[1732008131838,3.21759,3108.0,3107.7,0.7802]
[1732008132391,3.21735,3108.2,3107.7,0.7802]
[1732008132392,3.21737,3108.2,3107.7,0.7802]
[1732008132541,3.21754,3108.0,3107.7,0.7802]
[1732008132943,3.21737,3108.2,3107.7,3.998]
[1732008133182,3.21714,3108.4,3107.7,3.99796]
[1732008133183,3.21713,3108.4,3107.7,3.99796]
[1732008133398,0.7571,3108.7,3107.7,1.18]
[1732008133399,3.21722,3108.3,3107.7,1.18]
[1732008133574,3.21689,3108.6,3107.8,0.439791]
[1732008133749,3.2168,3108.7,3107.4,0.24807306]
[1732008133750,3.21677,3108.7,3107.6,0.7634]
[1732008133949,3.2172,3108.3,3108.1,0.7634]
[1732008134147,3.21699,3108.5,3108.1,0.7634]
[1732008134372,3.21726,3108.3,3107.7,0.7634]
[1732008134686,0.321699,3108.5,3107.8,3.21769]
[1732008134687,3.21707,3108.5,3107.8,3.21769]
[1732008134901,3.21678,3108.7,3107.8,3.21769]
[1732008134902,3.21678,3108.7,3108.1,3.21738]
[1732008135184,0.64039138,3108.8,3108.2,0.8301]
[1732008135344,0.45990098,3109.2,3108.6,0.7994]
[1732008135345,3.21639,3109.1,3108.6,0.7994]
[1732008135547,3.21639,3109.1,3108.6,4.01627]
[1732008135744,3.21639,3109.1,3108.6,0.7994]
[1732008135944,3.21663,3108.9,3108.6,0.7994]
[1732008136398,3.21671,3108.8,3108.6,0.7994]
[1732008136573,3.21677,3108.7,3108.6,0.7994]
[1732008136919,3.21663,3108.9,3108.6,0.7994]
[1732008137076,0.3218,3108.8,3108.6,0.7994]
[1732008137256,0.3218,3108.8,3108.3,4.02177]
[1732008137459,0.3218,3108.8,3108.4,3.21704]
[1732008137779,0.3218,3108.8,3108.5,0.8046]
[1732008138089,0.47990098,3110.0,3108.5,0.8046]
[1732008138090,0.3218,3109.4,3108.7,3.21677]
[1732008138286,0.3218,3109.4,3108.8,0.7595]
[1732008138486,0.3218,3109.2,3108.8,0.7595]
[1732008138658,3.53837,3108.9,3108.8,0.7595]
[1732008138861,0.3218,3108.9,3108.8,0.7595]
[1732008139058,0.3218,3108.9,3108.2,3.21724]
[1732008139059,3.53837,3108.9,3108.3,0.7679]
[1732008139307,0.3218,3108.6,3108.3,0.7679]
[1732008139502,3.21679,3108.7,3108.3,0.7679]
[1732008139503,0.3218,3108.4,3108.3,0.7679]
[1732008140211,0.3218,3108.2,3107.6,0.751]
[1732008140502,0.3218,3107.9,3107.6,0.751]
[1732008140810,0.3218,3107.9,3107.6,3.96891]
[1732008140969,0.3218,3107.9,3107.6,4.42060831]
[1732008141174,0.3218,3107.9,3107.6,1.20269831]
[1732008141386,3.21741,3108.1,3107.6,0.751]
[1732008141387,0.3218,3107.8,3107.6,0.751]
[1732008141765,0.3218,3107.8,3107.6,3.96885]
[1732008141964,0.3218,3107.8,3107.6,0.751]
[1732008142409,0.3218,3107.9,3107.6,0.751]
[1732008142758,3.21771,3107.8,3107.6,0.751]
[1732008142956,0.3218,3107.7,3107.6,0.751]
[1732008143600,3.53961,3107.7,3107.6,0.751]
[1732008143827,3.53961,3107.7,3107.3,2.48073064]
[1732008143828,3.53992,3107.4,3107.3,2.48073064]
[1732008145988,4.33722,3107.4,3107.3,2.48073064]
[1732008146216,7.89722,3107.4,3107.3,6.4e-07]
[1732008146625,7.89722,3107.4,3107.1,7.56e-06]
[1732008146626,4.35743,3107.2,3107.1,7.56e-06]
[1732008146840,7.85744,3106.9,3106.8,7.56e-06]
[1732008146999,9.15217248,3106.9,3106.8,7.56e-06]
[1732008147322,8.60217248,3106.9,3106.8,7.56e-06]
[1732008147601,8.653184,3106.9,3106.8,7.56e-06]
[1732008147751,9.10344748,3106.9,3106.8,7.56e-06]
[1732008147952,9.08344748,3106.9,3106.8,7.56e-06]
[1732008148109,9.08344748,3106.9,3106.5,4.1437865]
[1732008148110,3.54075,3106.6,3106.5,4.1437865]
[1732008148307,3.54075,3106.6,3105.8,5.0]
[1732008148308,7.89257,3105.9,3105.8,5.0]
[1732008148544,12.11647,3105.9,3105.8,1.86644724]
[1732008148738,7.11689,3105.5,3105.4,2.0]
[1732008148945,12.11689,3105.5,3105.4,2.0]
[1732008149218,12.11689,3105.5,3104.9,3.69468256]
[1732008149219,7.11741,3105.0,3104.9,3.69468256]
[1732008149442,7.11741,3105.0,3104.9,1.27737309]
[1732008149443,9.38356587,3105.0,3104.9,1.27737309]
[1732008149613,10.00971664,3105.0,3104.9,1.27737309]
[1732008149960,8.9211625,3105.0,3104.9,1.27737309]
[1732008150258,11.55282,3104.6,3104.4,4.86468582]
[1732008150464,9.2801311,3104.6,3104.4,4.86468582]
[1732008150756,8.7201311,3104.6,3104.4,4.86468582]
[1732008151363,9.2801311,3104.6,3104.4,4.86468582]
[1732008151563,15.1259927,3104.6,3104.4,4.86468582]
[1732008151731,6.3449727,3104.6,3104.4,4.86468582]
[1732008151933,2.4841111,3104.6,3104.4,4.86468582]
[1732008152244,0.61740324,3104.6,3104.4,4.86468582]
[1732008152418,1.14949056,3104.6,3104.5,4.88646858]
[1732008152617,1.14949056,3104.6,3104.5,8.10759858]
[1732008152860,0.55828408,3104.6,3104.5,5.67316858]
[1732008153066,0.85390861,3104.6,3104.5,5.67316858]
[1732008153235,0.55828408,3104.6,3104.5,4.0]
[1732008153562,1.14920146,3104.6,3104.5,4.0]
[1732008153858,1.64717893,3104.6,3104.5,4.0]
[1732008154158,0.85376763,3104.6,3104.5,4.0]
[1732008154364,0.85376763,3104.6,3104.5,4.88646858]
[1732008154365,0.3218,3104.6,3104.5,4.88646858]
[1732008154573,0.3218,3104.6,3104.5,8.10759858]
[1732008154787,0.3218,3104.6,3104.5,8.90139858]
[1732008154922,0.06290225,3104.6,3104.5,8.90139858]
[1732008155148,1.97328739,3105.4,3105.2,3.22032]
[1732008155149,0.33508523,3105.4,3105.2,3.22032]
[1732008155490,0.55800755,3105.3,3105.2,4.04022]
[1732008155785,0.55800755,3105.3,3105.2,5.088346]
[1732008155786,0.3218,3105.3,3105.2,5.088346]
[1732008155989,0.3218,3105.3,3105.2,0.8199]
[1732008156492,0.3218,3105.3,3105.2,4.0403]
[1732008157404,1.32300758,3106.2,3105.8,3.21977]
[1732008157405,0.3218,3106.1,3105.8,3.21977]
[1732008157550,0.3218,3105.9,3105.8,3.21977]
[1732008157750,0.3218,3105.9,3105.8,4.331347]
[1732008158179,0.33502413,3106.4,3106.3,3.21926]
[1732008158378,0.31498311,3107.3,3107.1,3.21836]
[1732008158563,0.31498311,3107.3,3106.5,3.21899]
[1732008158564,0.31498311,3107.3,3107.2,3.21833]
[1732008158769,0.53174192,3107.3,3107.1,3.98733]
[1732008158969,0.29541363,3107.3,3107.1,3.98733]
[1732008159193,3.21781,3107.7,3107.1,0.7689]
[1732008159380,0.29544861,3107.6,3107.1,0.7689]
[1732008159578,0.31514113,3108.1,3107.1,3.98732]
[1732008159579,0.53180692,3107.5,3107.1,3.98732]
[1732008159783,0.31514113,3108.1,3107.3,3.21813]
[1732008159784,1.32337448,3108.1,3107.3,3.21813]
[1732008160103,1.32337448,3108.1,3107.1,0.7689]
[1732008160104,0.82730696,3108.0,3107.5,3.21791]
[1732008160252,0.53184277,3107.9,3107.7,3.2178]
[1732008160589,0.85066516,3108.3,3107.9,3.2176]
[1732008160749,0.85066516,3108.3,3107.8,0.7689]
[1732008160750,0.23648635,3108.2,3107.8,0.7689]
[1732008160947,0.37816936,3108.3,3107.8,3.98651]
[1732008161168,0.37816936,3108.3,3108.2,3.21729]
[1732008161353,0.85117147,3108.9,3108.2,3.21729]
[1732008161574,0.82777618,3108.8,3108.3,3.21716]
[1732008161785,0.53214527,3108.7,3108.3,3.21716]
[1732008162009,0.47300211,3108.9,3108.6,0.7581]
[1732008162311,0.37816936,3109.0,3108.9,3.21657]
[1732008162518,3.21587,3109.6,3108.6,0.7581]
[1732008162674,0.82785144,3109.5,3108.9,3.21656]
[1732008162873,0.82785144,3109.4,3108.9,3.21656]
[1732008163068,0.2365302,3109.3,3108.9,3.21656]
[1732008163292,3.21517,3110.3,3109.0,3.21642]
[1732008163293,0.94577266,3109.9,3109.0,3.21642]
[1732008163522,0.82757433,3109.8,3108.6,0.7581]
[1732008163658,4.04336433,3109.7,3108.6,0.7581]
[1732008163865,1.77334699,3109.6,3108.6,0.7581]
[1732008164108,3.21615,3109.4,3108.7,3.21677]
[1732008164397,0.53200792,3109.3,3108.7,3.21677]
[1732008164606,3.21589,3109.6,3108.8,3.21667]
[1732008164607,0.53192417,3109.2,3108.8,3.21667]
[1732008164813,3.21575,3109.7,3108.6,0.7581]
[1732008165097,0.82735505,3109.6,3108.9,3.21652]
[1732008165303,0.82735505,3109.5,3108.9,3.21652]
[1732008165500,0.23638801,3109.4,3108.9,3.21652]
[1732008165661,3.21585,3109.6,3108.8,3.21663]
[1732008165856,0.29538903,3109.5,3108.6,3.97495]
[1732008166200,0.23631123,3109.4,3108.9,3.21648]
[1732008166502,3.21577,3109.7,3109.0,3.21645]
[1732008166671,0.53162514,3109.6,3109.0,3.21645]
[1732008166876,3.21577,3109.7,3109.0,3.21645]
[1732008166877,0.23627784,3109.5,3109.0,3.21645]
[1732008167080,0.23627784,3109.4,3108.7,3.21677]
[1732008167276,3.45249784,3109.3,3108.6,3.97489]
[1732008167598,3.21585,3109.6,3108.6,0.7581]
[1732008167781,0.53153438,3109.5,3109.0,3.21646]
[1732008167962,3.21572,3109.8,3109.0,3.21646]
[1732008167963,0.23623765,3109.4,3109.0,3.21646]
[1732008168169,3.21575,3109.7,3109.0,3.21646]
[1732008168381,4.04260842,3109.6,3109.0,3.21646]
[1732008168581,0.23621696,3109.5,3108.9,3.21657]
[1732008168980,3.45218696,3109.5,3108.9,3.21657]
[1732008169308,0.23621696,3109.4,3108.9,3.21657]
[1732008169486,3.59371091,3109.7,3108.9,3.21657]
[1732008169688,3.59371091,3109.7,3108.7,3.21675]
[1732008169689,3.21618,3109.3,3108.7,3.21675]
[1732008169874,3.21615,3109.4,3108.8,3.21666]
[1732008170073,3.21586,3109.6,3108.9,3.21649]
[1732008170273,0.23612976,3109.5,3109.0,3.21646]
[1732008170478,0.23612976,3109.5,3109.0,3.21645]
[1732008170693,0.23612976,3109.5,3108.9,3.21648]
[1732008170896,0.23612976,3109.5,3109.0,3.21646]
[1732008171078,0.23612976,3109.5,3109.4,3.21605]
[1732008171297,0.37780762,3109.7,3109.5,0.8198]
[1732008171513,0.47213388,3110.4,3109.9,3.21546]
[1732008171820,0.47213388,3110.4,3110.2,3.21522]
[1732008171821,0.29513889,3110.3,3110.2,3.21522]
[1732008171981,0.29514499,3110.3,3110.2,3.99602]
[1732008172182,0.31491743,3110.5,3110.4,3.21502]
[1732008172692,0.31491743,3110.4,3110.2,3.98593]
[1732008172891,3.21461,3110.8,3110.2,3.98593]
[1732008173092,3.21437,3111.1,3110.2,0.7708]
[1732008173292,3.21415,3111.3,3110.6,3.21478]
[1732008173511,0.23585153,3111.2,3110.6,3.21478]
[1732008173714,3.21415,3111.3,3110.6,6.42949]
[1732008173947,0.23586255,3111.2,3110.3,0.01]
[1732008174116,0.23586255,3111.1,3110.2,3.99599]
[1732008174444,3.21451,3110.9,3110.2,3.98599]
[1732008174739,3.21482,3110.6,3110.0,3.21536]
[1732008174939,3.21482,3110.6,3110.0,3.21535]
[1732008175143,3.21456,3110.9,3110.1,3.21524]
[1732008175443,3.21432,3111.1,3110.0,0.01]
[1732008175741,3.21432,3111.1,3110.5,3.2149]
[1732008175961,3.21432,3111.1,3109.9,0.01]
[1732008175962,3.2145,3110.9,3110.3,3.21507]
[1732008176100,3.21432,3111.1,3110.3,3.21507]
[1732008176303,3.2146,3110.9,3110.3,3.21507]
[1732008176541,3.21425,3111.2,3110.5,3.21487]
[1732008177013,3.214,3111.4,3110.7,3.2147]
[1732008177603,3.214,3111.4,3110.7,3.979]
[1732008177807,0.37653028,3111.7,3110.9,3.21449]
[1732008178040,1.15277706,3112.4,3111.8,0.7743]
[1732008178251,3.21231,3113.1,3112.4,3.21288]
[1732008178551,4.498235,3113.3,3112.6,3.21272]
[1732008178552,3.21204,3113.3,3112.6,3.21272]
[1732008178901,3.54995,3113.5,3112.8,3.21246]
[1732008179137,3.21173,3113.6,3112.8,3.21246]
[1732008179650,0.3381,3113.9,3113.0,3.21226]
[1732008179651,3.54954,3113.9,3113.0,3.21226]
[1732008179855,3.23041,3114.9,3113.0,3.21226]
[1732008179856,3.21037,3114.9,3113.8,0.8199]
[1732008180022,0.50224648,3115.0,3113.3,0.8199]
[1732008180023,3.21132,3114.0,3113.3,0.8199]
[1732008180219,3.21152,3113.8,3113.3,0.8199]
[1732008180449,0.3381,3114.3,3113.4,3.21185]
[1732008180654,3.21137,3114.0,3113.3,0.8199]
[1732008180819,3.21137,3114.0,3113.3,4.03184]
[1732008181353,0.01,3114.8,3113.3,4.03184]
[1732008181354,3.21027,3115.1,3113.6,0.01]
[1732008181566,3.21027,3115.1,3113.4,3.77187]
[1732008181567,3.21023,3115.1,3113.9,0.56]
[1732008181764,0.29392629,3115.0,3114.3,3.21089]
[1732008181976,3.20962,3115.7,3114.4,0.7501]
[1732008182176,3.20962,3115.7,3114.7,3.2105]
[1732008182177,3.20983,3115.5,3114.7,3.2105]
[1732008182527,0.1437865,3115.9,3115.0,3.21026]
[1732008182826,0.1437865,3115.9,3114.8,0.7534]
[1732008183028,3.20988,3115.4,3114.8,0.7534]
[1732008183328,3.20994,3115.4,3114.8,0.7534]
[1732008183524,0.1437865,3115.9,3114.8,0.7534]
[1732008183728,0.1437865,3115.9,3113.8,0.01]
[1732008183729,3.21068,3114.6,3114.1,0.7628]
[1732008184059,3.20996,3115.3,3114.1,0.7628]
[1732008184230,3.21053,3114.8,3114.1,0.7628]
[1732008184580,3.54796,3115.4,3114.1,0.7628]
[1732008184581,3.20998,3115.3,3114.1,0.7628]
[1732008184864,3.21056,3114.8,3114.1,0.7628]
[1732008185371,0.3381,3115.4,3114.1,0.7628]
[1732008185527,3.21091,3114.4,3113.5,0.7597]
[1732008185723,3.21086,3114.5,3113.7,0.01]
[1732008185927,3.2106,3114.7,3113.9,3.2114]
[1732008186154,3.67957243,3115.3,3113.9,3.2114]
[1732008186155,3.21071,3114.6,3113.9,3.2114]
[1732008186566,3.21049,3114.8,3113.7,3.2216]
[1732008186567,3.21049,3114.8,3113.8,3.21149]
[1732008186887,3.54762,3115.8,3114.2,0.7766]
[1732008187065,3.20973,3115.6,3114.7,3.21058]
[1732008187376,3.20973,3115.6,3114.9,3.21032]
[1732008187566,3.21008,3115.2,3114.5,3.21075]
[1732008187763,3.20995,3115.4,3114.8,3.21039]
[1732008188074,3.20967,3115.6,3114.7,0.01]
[1732008188382,3.20982,3115.5,3114.8,3.21045]
[1732008188596,3.20982,3115.5,3114.2,0.7766]
[1732008188597,3.21007,3115.2,3114.4,3.21082]
[1732008188785,3.20944,3115.8,3114.4,0.01]
[1732008189003,3.20997,3115.3,3114.6,3.21065]
[1732008189154,3.20987,3115.4,3114.7,3.99036]
[1732008189584,3.3531365,3115.9,3114.7,0.7798]
[1732008189899,3.20967,3115.6,3114.9,3.21037]
[1732008190549,3.20967,3115.6,3114.7,3.99029]
[1732008190746,3.20983,3115.5,3114.8,3.21041]
[1732008190950,3.20998,3115.3,3114.7,0.7798]
[1732008191164,3.21047,3114.8,3114.7,0.7798]
[1732008191500,3.20981,3115.5,3114.0,0.823]
[1732008191501,3.21107,3114.3,3114.0,0.823]
[1732008191986,3.21006,3115.2,3114.0,0.823]
[1732008191987,3.21072,3114.6,3114.0,0.823]
[1732008192298,0.3381,3115.5,3114.0,0.823]
[1732008192510,3.21091,3114.4,3114.0,0.823]
[1732008192873,3.20986,3115.4,3114.0,0.823]
[1732008192874,3.2112,3114.1,3114.0,0.823]
[1732008193222,3.21134,3114.0,3113.4,0.7934]
[1732008193516,3.21076,3114.6,3113.4,0.7934]
[1732008193517,3.21162,3113.7,3113.4,0.7934]
[1732008193698,3.21149,3113.9,3113.4,0.7934]
[1732008194076,3.21151,3113.8,3113.4,0.7934]
[1732008194271,3.21124,3114.1,3113.4,0.7934]
[1732008194594,3.21124,3114.1,3113.4,1.195951]
[1732008194917,3.21143,3113.9,3113.4,1.195951]
[1732008195070,3.21064,3114.7,3113.4,0.7934]
[1732008195272,6.42341,3113.7,3113.4,0.7934]
[1732008195517,3.21174,3113.6,3113.4,0.7934]
[1732008195686,3.21174,3113.6,3112.0,0.65061904]
[1732008195687,0.01,3113.6,3112.0,0.65061904]
[1732008195891,3.21298,3112.4,3111.8,0.8121]
[1732008196075,3.01,3113.6,3111.8,0.8121]
[1732008196276,0.3381,3112.5,3111.1,0.8121]
[1732008196529,0.3381,3112.9,3111.3,0.01]
[1732008196736,3.21313,3112.3,3111.6,3.21374]
[1732008196905,3.21313,3112.3,3111.6,3.27781127]
[1732008197296,3.21316,3112.2,3111.6,0.06407127]
[1732008197599,3.21316,3112.2,3111.5,0.06407127]
[1732008197600,3.21337,3112.0,3111.5,0.06407127]
[1732008197797,3.21316,3112.2,3111.4,4.09025514]
[1732008198097,3.21316,3112.2,3111.4,4.49286614]
[1732008198410,3.21316,3112.2,3111.5,3.21379]
[1732008198719,3.21313,3112.3,3111.4,1.27897614]
[1732008198931,3.55055,3112.9,3111.4,1.27897614]
[1732008198932,3.21326,3112.1,3111.4,4.09027514]
[1732008199315,3.21353,3111.9,3111.4,0.87636514]
[1732008199517,3.21353,3111.9,3111.4,0.8121]
[1732008200217,3.2137,3111.7,3111.4,0.8121]
[1732008200442,3.21353,3111.9,3111.4,0.8121]
[1732008200646,3.21358,3111.8,3111.4,0.8121]
[1732008200909,3.21381,3111.6,3111.4,0.8121]
[1732008201103,3.21369,3111.7,3111.4,0.8121]
[1732008201420,0.23671659,3111.6,3111.4,0.8121]
[1732008201619,3.21348,3111.9,3111.4,0.8121]
[1732008201821,3.21372,3111.7,3111.4,0.8121]
[1732008202646,0.23691343,3111.6,3111.4,0.8121]
[1732008202854,3.21388,3111.5,3111.4,0.8121]
[1732008203056,3.21372,3111.7,3111.4,0.8121]
[1732008203347,0.50236573,3111.5,3111.4,0.8121]
[1732008204453,3.21367,3111.7,3111.4,0.8121]
[1732008204661,3.21388,3111.5,3111.4,0.8121]
[1732008204819,6.2128,3112.6,3111.4,0.8121]
[1732008204820,3.21354,3111.9,3111.4,0.8121]
[1732008205007,0.53383748,3111.8,3111.4,0.8121]
[1732008205210,0.53408556,3111.7,3111.4,4.428619]
[1732008205412,4.06743997,3112.1,3111.4,4.026]
[1732008205665,1.68522476,3112.0,3111.4,0.8121]
[1732008205821,3.21388,3111.5,3111.4,0.8121]
[1732008206023,4.60308415,3111.5,3111.4,0.8121]
[1732008206436,3.21419,3111.2,3110.9,0.8027]
[1732008206754,3.213,3112.4,3110.9,0.8027]
[1732008206755,3.45175242,3111.1,3110.9,0.8027]
[1732008206907,0.53457049,3111.0,3110.9,0.8027]
[1732008207111,0.5345731,3111.0,3110.9,0.8027]
[1732008207798,3.7489731,3111.0,3110.9,0.8027]
[1732008208249,3.21478,3110.7,3110.3,0.7588]
[1732008208857,3.21401,3111.4,3110.3,0.7588]
[1732008209018,4.90295531,3111.3,3110.7,3.21464]
[1732008209350,3.2145,3110.9,3110.3,3.97385]
[1732008209658,0.5349327,3110.8,3110.3,3.97385]
[1732008209839,0.53490814,3110.7,3110.3,0.7588]
[1732008210016,3.21461,3110.8,3110.3,0.7588]
[1732008210356,3.21484,3110.6,3110.3,0.7588]
[1732008210660,3.21394,3111.5,3110.3,0.7588]
[1732008210812,3.21493,3110.5,3110.3,0.7588]
[1732008211014,3.21502,3110.4,3110.3,0.7588]
[1732008211243,3.21539,3110.1,3109.4,0.7803]
[1732008211444,3.21559,3109.9,3109.4,0.7803]
[1732008211876,3.45318472,3109.8,3109.4,0.7803]
[1732008212036,3.21582,3109.7,3109.4,0.7803]
[1732008212461,0.67407675,3110.9,3109.4,0.7803]
[1732008212688,3.21572,3109.8,3109.4,0.7803]
[1732008214036,0.8539183,3110.2,3109.4,0.7803]
[1732008214037,4.0692183,3110.2,3109.4,0.7803]
[1732008214351,0.53353337,3110.1,3109.4,0.7903]
[1732008214686,0.3381,3110.9,3109.4,0.7803]
[1732008214687,3.21564,3109.9,3109.4,0.7803]
[1732008214978,3.2158,3109.7,3109.4,0.7803]
[1732008215199,3.2158,3109.7,3109.2,3.0]
[1732008215343,3.21606,3109.4,3109.1,0.7856]
[1732008215542,0.3381,3110.1,3109.1,0.7856]
[1732008215543,3.21618,3109.3,3109.1,0.7856]
[1732008215774,3.21618,3109.3,3108.3,0.02]
[1732008215775,3.21643,3109.1,3108.6,0.7703]
[1732008216183,3.21646,3109.0,3108.6,0.7703]
[1732008216395,0.3381,3110.1,3108.3,3.22713]
[1732008216396,3.21634,3109.2,3108.3,3.22713]
[1732008216548,3.21611,3109.4,3108.7,3.21668]